[Event "GER-ch Youth-ODJM 2022 A"]
[Site "Willingen"]
[Date "2022.06.08"]
[Round "6.7"]
[White "Fröhlich, Niklas"]
[Black "Rabus, Johann"]
[Result "1-0"]
[ECO "B10"]
[WhiteElo "1242"]
[BlackElo "1079"]
[Annotator "NA RC COMBH"]
[PlyCount "64"]
[EventDate "2022.06.05"]
[EventType "swiss"]
[EventRounds "9"]
[EventCountry "GER"]
[SourceTitle "playchess.com"]
[Source "ChessBase"]
[SourceQuality "1"]
[TimeControl "40/4500+30:900+30"]

1. e4 {[%emt 0:00:00]} c6 {[%emt 0:00:00]} 2. Nc3 {[%emt 0:00:00]} d5 {[%emt 0:00:00]} 3. Nf3 {[%emt 0:00:00]} Nf6 {[%emt 0:00:00]} 4. e5 {[%emt 0:00:00]} Ne4 {[%emt 0:00:00]} 5. Ne2 {[%emt 0:00:00]} Bg4 {[%emt 0:00:00]} 6. h3 {[%emt 0:00:00]} Bh5 {[%emt 0:00:00]} 7. g4 {[%emt 0:00:00]} Bg6 {[%emt 0:00:00]} 8. d3 {[%emt 0:00:00]} Nc5 {[%emt 0:00:00]} 9. h4 {[%emt 0:00:00]} h5 {[%emt 0:00:00]} 10. g5 {[%emt 0:00:02]} e6 {[%emt 0:00:00]} 11. Nfd4 {[%emt 0:04:35]} Nbd7 {[%emt 0:00:00]} 12. f4 {[%emt 0:01:33]} Bf5 {[%emt 0:00:00]} 13. Nxf5 {[%emt 0:00:30]} exf5 {[%emt 0:00:00]} 14. Nd4 {[%emt 0:02:59]} g6 {[%emt 0:00:00]} 15. Qe2 {[%emt 0:05:15]} Ne6 {[%emt 0:00:00]} 16. Be3 {[%emt 0:04:18]} c5 {[%emt 0:00:00]} 17. Nxe6 {[%emt 0:01:02]} fxe6 {[%emt 0:02:39]} 18. c4 {[%emt 0:01:36]} d4 {[%emt 0:01:53]} 19. Bd2 {[%emt 0:00:22]} Qc7 {[%emt 0:00:16]} 20. Bg2 {[%emt 0:00:27]} Rb8 {[%emt 0:00:21]} 21. b3 {[%emt 0:02:43]} Be7 {[%emt 0:01:19]} 22. Kf2 {[%emt 0:01:49]} Kf7 {[%emt 0:00:23]} 23. Rab1 {[%emt 0:02:15]} Ra8 {[%emt 0:00:50]} 24. Rb2 {[%emt 0:02:40]} Rab8 {[%emt 0:00:19]} 25. Rhb1 {[%emt 0:01:47]} b5 {[%emt 0:00:10]} 26. cxb5 {[%emt 0:05:34]} Rxb5 {[%emt 0:00:11]} 27. Qf3 {[%emt 0:01:06]} Rhb8 {[%emt 0:00:28]} 28. Qc6 {[%emt 0:00:52]} Qxc6 {[%emt 0:00:13]} 29. Bxc6 {[%emt 0:00:07]} R5b6 {[%emt 0:00:09]} 30. Bf3 {[%emt 0:00:45]} a6 {[%emt 0:00:12]} 31. a4 {[%emt 0:01:03]} Kg7 {[%emt 0:00:40]} 32. Ba5 {[%emt 0:00:13]} Ra8 1-0

[Event "GER-ch Youth-ODJM 2022 A"]
[Site "Willingen"]
[Date "2022.06.08"]
[Round "6.8"]
[White "Zinnikus, Elias"]
[Black "Pac, Maksym"]
[Result "1/2-1/2"]
[ECO "D12"]
[WhiteElo "1282"]
[BlackElo "1033"]
[Annotator "NA RC COMBH"]
[PlyCount "73"]
[EventDate "2022.06.05"]
[EventType "swiss"]
[EventRounds "9"]
[EventCountry "GER"]
[SourceTitle "playchess.com"]
[Source "ChessBase"]
[SourceQuality "1"]
[TimeControl "40/4500+30:900+30"]

1. Nf3 {[%emt 0:00:00]} d5 {[%emt 0:00:00]} 2. d4 {[%emt 0:00:00]} Nf6 {[%emt 0:00:00]} 3. c4 {[%emt 0:00:00]} c6 {[%emt 0:00:00]} 4. e3 {[%emt 0:00:00]} Bf5 {[%emt 0:00:00]} 5. Nc3 {[%emt 0:00:00]} e6 {[%emt 0:00:00]} 6. Be2 {[%emt 0:00:00]} Ne4 {[%emt 0:00:00]} 7. Nxe4 {[%emt 0:00:00]} Bxe4 {[%emt 0:00:00]} 8. O-O {[%emt 0:00:00]} Nd7 {[%emt 0:00:00]} 9. Bd3 {[%emt 0:00:00]} Nf6 {[%emt 0:00:00]} 10. Bxe4 {[%emt 0:00:00]} Nxe4 {[%emt 0:00:00]} 11. Nd2 {[%emt 0:00:00]} Nf6 {[%emt 0:00:00]} 12. Qb3 {[%emt 0:00:00]} Rb8 {[%emt 0:00:25]} 13. Re1 {[%emt 0:00:00]} Be7 {[%emt 0:04:47]} 14. Nf3 {[%emt 0:00:00]} O-O {[%emt 0:01:41]} 15. Bd2 {[%emt 0:00:00]} c5 {[%emt 0:02:16]} 16. cxd5 {[%emt 0:00:00]} Qxd5 {[%emt 0:01:41]} 17. Qxd5 {[%emt 0:00:00]} Nxd5 {[%emt 0:03:10]} 18. Rac1 {[%emt 0:00:00]} cxd4 {[%emt 0:01:17]} 19. Nxd4 {[%emt 0:00:37]} Bf6 {[%emt 0:04:06]} 20. Bc3 {[%emt 0:07:11]} Nxc3 {[%emt 0:00:58]} 21. Rxc3 {[%emt 0:00:08]} Bxd4 {[%emt 0:00:37]} 22. exd4 {[%emt 0:00:05]} Rfd8 {[%emt 0:01:08]} 23. Rec1 {[%emt 0:00:36]} Rxd4 {[%emt 0:00:47]} 24. Rc8+ Rd8 25. Rxb8 {[%emt 0:01:14]} Rxb8 {[%emt 0:00:57]} 26. f4 {[%emt 0:00:42]} Rd8 {[%emt 0:02:50]} 27. Kf2 Rd2+ {[%emt 0:01:36]} 28. Ke3 {[%emt 0:00:11]} Rd8 {[%emt 0:00:13]} 29. Rc7 {[%emt 0:00:11]} Rb8 {[%emt 0:00:45]} 30. Ke4 {[%emt 0:03:47]} g6 {[%emt 0:07:37]} 31. g4 {[%emt 0:00:13]} Kg7 {[%emt 0:02:13]} 32. h4 {[%emt 0:01:36]} a6 {[%emt 0:02:39]} 33. a4 {[%emt 0:01:29]} b5 {[%emt 0:01:55]} 34. a5 {[%emt 0:01:36]} Rd8 {[%emt 0:10:07]} 35. Ra7 {[%emt 0:02:46]} Rd6 {[%emt 0:02:42]} 36. Ke5 {[%emt 0:01:08]} Rc6 {[%emt 0:03:34]} 37. g5 {[%emt 0:01:33]} 1/2-1/2

[Event "GER-ch Youth-ODJM 2022 A"]
[Site "Willingen"]
[Date "2022.06.08"]
[Round "6.9"]
[White "Köhler, Lukas"]
[Black "François, Yannick"]
[Result "1/2-1/2"]
[ECO "D35"]
[WhiteElo "2099"]
[BlackElo "1867"]
[Annotator "TA"]
[PlyCount "81"]
[EventDate "2022.06.05"]
[EventType "swiss"]
[EventRounds "9"]
[EventCountry "GER"]
[SourceTitle "playchess.com"]
[Source "ChessBase"]
[SourceQuality "1"]
[TimeControl "40/4500+30:900+30"]

{[%evp 25,81,36,24,4,43,18,35,33,28,32,26,23,25,22,51,33,48,43,51,34,44,35,50,56,56,39,49,27,96,65,116,110,97,100,95,87,188,187,168,78,140,158,155,121,430,166,132,38,60,21,38,0,58,0,46,46,91,82]} 1. d4 {[%emt 0:00:00]} Nf6 {[%emt 0:00:00]} 2. c4 {[%emt 0:00:00]} e6 {[%emt 0:00:00]} 3. Nc3 {[%emt 0:00:00]} d5 {[%emt 0:00:00]} 4. cxd5 {[%emt 0:00:00]} exd5 {[%emt 0:00:00]} 5. Bg5 {[%emt 0:00:00]} Be7 {[%emt 0:00:00]} 6. e3 {[%emt 0:00:00]} O-O {[%emt 0:00:00]} 7. Bd3 {[%emt 0:00:00]} c6 {[%emt 0:00:00]} 8. Nge2 {[%emt 0:00:00]} Re8 {[%emt 0:00:00]} 9. O-O {[%emt 0:00:00]} Nbd7 {[%emt 0:00:00]} 10. Qc2 {[%emt 0:00:00]} h6 {[%emt 0:00:00]} 11. Bh4 {[%emt 0:00:00]} Ne4 {[%emt 0:00:00]} 12. Bxe7 {[%emt 0:00:00]} Qxe7 {[%emt 0:00:00]} 13. Bxe4 {[%emt 0:00:00]} dxe4 {[%emt 0:00:00]} 14. d5 {[%emt 0:00:00] D36: Queen's Gambit Declined: Exchange Variation: Main line (5 Bg5 c6 6 Qc2).} Nf6 {[%emt 0:00:00]} 15. Rfd1 {[%emt 0:20:37]} cxd5 {[%emt 0:00:00]} 16. Nxd5 {[%emt 0:01:00] White is slightly better.} Nxd5 {[%emt 0:00:00]} 17. Rxd5 {[%emt 0:00:07]} b6 {[%emt 0:00:00]} 18. Qa4 {[%emt 0:06:28]} Be6 {[%emt 0:02:06]} 19. Rd4 {[%emt 0:04:07] [#]} f5 $146 {[%emt 0:01:46]} ({Predecessor:} 19... Rad8 20. Rc1 Rxd4 21. Nxd4 Rc8 22. Rxc8+ Bxc8 23. a3 Qd7 24. Qc4 Kh7 25. b4 a6 {½-½ (42) Reichert,T (2339)-Littke,H (2208) GER email 2015}) 20. h3 {[%emt 0:02:40]} Red8 {[%emt 0:01:42]} 21. Rad1 {[%emt 0:02:22]} Rxd4 {[%emt 0:00:53]} 22. Rxd4 {[%emt 0:02:03]} Rd8 {[%emt 0:01:02]} 23. a3 {[%emt 0:12:01]} Rxd4 {[%emt 0:03:58]} 24. Nxd4 $14 {[%emt 0:01:54][%mdl 4096] Endgame KQB-KQN} Qd7 {[%emt 0:00:20]} 25. Qb4 {[%emt 0:04:04]} Kf7 {[%emt 0:01:11]} 26. Qc3 {[%emt 0:01:19]} Bd5 {[%emt 0:05:36]} (26... Qc8 $11 {keeps the balance.}) 27. a4 {[%emt 0:06:11]} Ke7 {[%emt 0:08:34]} (27... Be6 $14) 28. a5 $16 {[%emt 0:06:55]} g6 {[%emt 0:06:39]} 29. axb6 {[%emt 0:02:38]} axb6 {[%emt 0:00:07]} 30. Ne2 {[%emt 0:02:34]} h5 {[%emt 0:05:44]} (30... Qd6 $16) 31. Qe5+ {[%emt 0:11:18]} Kf7 {[%emt 0:06:20]} 32. Qh8 {[%emt 0:00:54]} (32. Nf4 $1 $18 {[%cal Rf4d5] has better winning chances.} Ba2 33. Qh8 Qd1+ 34. Kh2) 32... Qe8 {[%emt 0:01:55]} (32... Ke7 $142) 33. Qh7+ {[%emt 0:00:26]} Kf6 {[%emt 0:00:09]} 34. Qc7 {[%emt 0:01:06]} Qc6 {[%emt 0:01:11][%mdl 8192] [#]} (34... b5 $16 {is tougher.}) 35. Qd8+ $2 {[%emt 0:00:07]} (35. Nf4 $1) 35... Kg7 $18 {[%emt 0:00:07] [#]} 36. Nc3 {[%emt 0:01:12]} (36. Nd4 $1 $16 Qb7 37. Nb5) 36... Bf7 {[%emt 0:00:42]} 37. Qd4+ {[%emt 0:00:30]} Kg8 {[%emt 0:00:58]} 38. Qd8+ {[%emt 0:00:14]} Kg7 $1 {[%emt 0:00:09]} 39. Qd4+ {[%emt 0:00:20]} Kg8 {[%emt 0:00:05]} 40. Qe5 {[%emt 0:01:32][%cal Og2g4]} Qe6 {[%emt 0:02:47]} 41. Qb8+ {[%emt 0:00:00] Weighted Error Value: White=0.39/Black=0.33} 1/2-1/2

[Event "GER-ch Youth-ODJM 2022 A"]
[Site "Willingen"]
[Date "2022.06.08"]
[Round "6.10"]
[White "Reimer, Philip"]
[Black "Kracht, Raphael"]
[Result "1/2-1/2"]
[ECO "C54"]
[WhiteElo "1977"]
[BlackElo "2086"]
[Annotator "TA"]
[PlyCount "65"]
[EventDate "2022.06.05"]
[EventType "swiss"]
[EventRounds "9"]
[EventCountry "GER"]
[SourceTitle "playchess.com"]
[Source "ChessBase"]
[SourceQuality "1"]
[TimeControl "40/4500+30:900+30"]

{[%evp 17,65,9,10,9,19,5,11,0,0,0,29,45,116,110,153,149,174,182,175,97,112,85,90,92,123,92,92,74,81,75,119,92,86,40,141,149,143,39,72,0,0,0,0,0,0,0,0,0,8,8]} 1. e4 {[%emt 0:00:00]} e5 {[%emt 0:00:00]} 2. Nf3 {[%emt 0:00:00]} Nc6 {[%emt 0:00:00]} 3. Bc4 {[%emt 0:00:00]} Bc5 {[%emt 0:00:00]} 4. c3 {[%emt 0:00:00]} Nf6 {[%emt 0:00:00]} 5. d4 {[%emt 0:00:00]} exd4 {[%emt 0:00:00]} 6. e5 {[%emt 0:00:00]} d5 {[%emt 0:00:00]} 7. Bb5 {[%emt 0:00:00]} Ne4 {[%emt 0:00:00]} 8. cxd4 {[%emt 0:00:00]} Bb6 {[%emt 0:00:00]} 9. Nc3 {[%emt 0:00:00]} O-O {[%emt 0:00:00]} 10. Be3 {[%emt 0:00:00] C54: Giuoco Piano: 4 c3 Nf6, main lines with 5 d4 and 5 d3.} Bg4 {[%emt 0:00:00]} 11. h3 {[%emt 0:00:00]} Bh5 {[%emt 0:00:00]} 12. Qc2 {[%emt 0:00:00]} Ba5 {[%emt 0:00:00] Recently 12...Nxc3 got a lot of attention.} 13. O-O {[%emt 0:00:00]} Bxc3 {[%emt 0:00:24]} 14. bxc3 {[%emt 0:00:00] [#]} Ne7 $146 {[%emt 0:00:17]} (14... Na5 $14) ({Predecessor:} 14... Qd7 15. Be2 Na5 {½-½ (15) Ter Sahakyan,S (2645)-Aleksandrov,A (2563) Chess.com INT 2021}) 15. Bd3 $16 {[%emt 0:00:06] White is more active.} Bg6 {[%emt 0:00:34]} 16. Nh4 {[%emt 0:03:22]} c5 {[%emt 0:07:36]} 17. Nxg6 {[%emt 0:06:36]} hxg6 {[%emt 0:00:06]} 18. Bxe4 {[%emt 0:01:37]} ({White should play} 18. dxc5 $18 Nf5 19. Bd4 (19. Bxe4 Nxe3 20. fxe3 dxe4 $16)) 18... dxe4 {[%emt 0:00:07]} 19. Qxe4 {[%emt 0:00:16]} cxd4 {[%emt 0:01:30]} 20. cxd4 {[%emt 0:00:58]} Qd5 {[%emt 0:01:45]} 21. Qxd5 {[%emt 0:02:28]} Nxd5 {[%emt 0:00:18]} 22. Rab1 {[%emt 0:02:48]} b6 {[%emt 0:00:08]} 23. Rfc1 {[%emt 0:01:17]} Rfc8 {[%emt 0:00:11]} 24. Rxc8+ {[%emt 0:01:47]} Rxc8 {[%emt 0:03:02]} 25. Rb5 {[%emt 0:13:30]} (25. Rc1 $16 Rxc1+ 26. Bxc1) 25... Nxe3 {[%emt 0:13:21]} (25... Nc3 $14 26. Rb2 Nd5) 26. fxe3 $14 {[%emt 0:00:12][%mdl 4096] Endgame KR-KR} Rc1+ {[%emt 0:04:17] [#]} 27. Kh2 {[%emt 0:20:14]} (27. Kf2 $1 $16) 27... Rc3 $1 {[%emt 0:02:37]} 28. a4 {[%emt 0:07:03]} ({Better is} 28. Rd5 $16) 28... Rxe3 $11 {[%emt 0:00:09] The position is equal.} 29. a5 {[%emt 0:00:17]} Rd3 {[%emt 0:02:32]} 30. axb6 {[%emt 0:00:59]} axb6 {[%emt 0:00:05]} 31. Rxb6 {[%emt 0:01:16]} Rxd4 {[%emt 0:00:05]} 32. e6 {[%emt 0:00:18]} Rd8 {[%emt 0:00:42] Inhibits Rb8.} 33. exf7+ {[%emt 0:01:28] White really could win this.  Weighted Error Value: White=0.24 (precise) /Black=0.20 (precise)} 1/2-1/2

[Event "GER-ch Youth-ODJM 2022 A"]
[Site "Willingen"]
[Date "2022.06.08"]
[Round "6.11"]
[White "Herter, Arne"]
[Black "Gerlach, Felix"]
[Result "1/2-1/2"]
[ECO "C96"]
[WhiteElo "1943"]
[BlackElo "2072"]
[Annotator "TA"]
[PlyCount "58"]
[EventDate "2022.06.05"]
[EventType "swiss"]
[EventRounds "9"]
[EventCountry "GER"]
[SourceTitle "playchess.com"]
[Source "ChessBase"]
[SourceQuality "1"]
[TimeControl "40/4500+30:900+30"]

{[%evp 24,58,33,31,23,9,61,12,39,4,6,0,0,0,0,-8,0,0,0,-462,-444,-454,-437,-455,-441,-456,-456,-465,-461,-585,-574,-601,-600,-659,-650,-626,-619]} 1. e4 {[%emt 0:00:00]} e5 {[%emt 0:00:00]} 2. Nf3 {[%emt 0:00:00]} Nc6 {[%emt 0:00:00]} 3. Bb5 {[%emt 0:00:00]} a6 {[%emt 0:00:00]} 4. Ba4 {[%emt 0:00:00]} Nf6 {[%emt 0:00:00]} 5. O-O {[%emt 0:00:00]} Be7 {[%emt 0:00:00]} 6. Re1 {[%emt 0:00:00]} b5 {[%emt 0:00:00]} 7. Bb3 {[%emt 0:00:00]} d6 {[%emt 0:00:00]} 8. c3 {[%emt 0:00:00]} O-O {[%emt 0:00:00]} 9. h3 {[%emt 0:00:00]} Na5 {[%emt 0:00:00]} 10. Bc2 {[%emt 0:00:00]} c5 {[%emt 0:00:00]} 11. d4 {[%emt 0:00:00]} Nd7 {[%emt 0:00:00]} 12. Nbd2 {[%emt 0:00:00][%cal Bb1d2,Bd2f1,Bf1g3][%mdl 32]} exd4 {[%emt 0:00:00]} 13. cxd4 {[%emt 0:00:00]} Nc6 {[%emt 0:00:00] C96: Closed Ruy Lopez: Chigorin Defence: 11 d4, replies other than 11...Qc7.} 14. Nf1 {[%emt 0:01:09]} Bf6 {[%emt 0:00:00]} (14... Nxd4 $11 15. Nxd4 cxd4) 15. Be3 {[%emt 0:19:18]} (15. e5 $1 $14 dxe5 16. Be4) 15... Re8 {[%emt 0:12:53] The position is equal.} 16. Rc1 {[%emt 0:04:09][%cal Oe4e5]} Bb7 {[%emt 0:08:36]} 17. Ng3 {[%emt 0:06:19]} g6 {[%emt 0:12:18] Against Nf5} 18. Bb1 {[%emt 0:04:30] [#]} cxd4 $146 ({Predecessor:} 18... Rc8 19. b3 Qe7 20. Qd2 h5 21. d5 Nce5 22. Nh2 Nb6 23. Ne2 Ned7 24. f4 Nxd5 25. Bxc5 dxc5 26. exd5 {0-1 (35) Donate Moreno,S (1903)-Eden,J (2323) Sitges 2020}) 19. Nxd4 Nxd4 {[%emt 0:06:28]} 20. Bxd4 {[%emt 0:00:48]} d5 {[%emt 0:07:54]} 21. exd5 $2 {[%emt 0:07:39][%mdl 8192]} (21. Bxf6 $11 Nxf6 22. e5) 21... Rxe1+ $19 {[%emt 0:01:17][%mdl 64] [#] Deflection. Black is clearly winning.} 22. Qxe1 {[%emt 0:00:27]} Bxd4 {[%emt 0:00:15]} 23. Qd2 {[%emt 0:03:31]} Bg7 {[%emt 0:03:55]} 24. d6 {[%emt 0:10:30]} Rc8 {[%emt 0:03:16][%cal Ba8c8,Bc8c5,Bc5c6][%mdl 32] Against Rc7} 25. Rd1 {[%emt 0:06:28]} Nf6 {[%emt 0:04:37]} 26. f3 {[%emt 0:06:18]} Rc5 {[%emt 0:06:58]} 27. Be4 {[%emt 0:02:45]} Nxe4 {[%emt 0:05:27]} 28. fxe4 {[%emt 0:00:26]} Be5 {[%emt 0:00:42]} 29. Ne2 {[%emt 0:02:22]} Rc6 {[%emt 0:00:41][%mdl 32768] Weighted Error Value: White=0.80/Black=0.08 (flawless) . An unexpected result.} 1/2-1/2

[Event "GER-ch Youth-ODJM 2022 A"]
[Site "Willingen"]
[Date "2022.06.08"]
[Round "6.12"]
[White "Lohr, Maximilian"]
[Black "Weigand, Anton"]
[Result "1/2-1/2"]
[ECO "B40"]
[WhiteElo "2080"]
[BlackElo "1872"]
[Annotator "TA"]
[PlyCount "79"]
[EventDate "2022.06.05"]
[EventType "swiss"]
[EventRounds "9"]
[EventCountry "GER"]
[SourceTitle "playchess.com"]
[Source "ChessBase"]
[SourceQuality "1"]
[TimeControl "40/4500+30:900+30"]

{[%evp 18,79,20,16,41,46,32,24,47,43,63,70,73,57,52,61,60,6,79,75,95,89,86,80,124,119,126,111,119,108,128,123,158,154,213,197,209,209,219,165,206,176,168,162,172,161,180,177,320,302,248,177,466,231,462,425,389,394,516,454,502,480,394,15]} 1. e4 {[%emt 0:00:00]} c5 {[%emt 0:00:00]} 2. Nf3 {[%emt 0:00:00]} e6 {[%emt 0:00:00]} 3. c4 {[%emt 0:00:00]} Nc6 {[%emt 0:00:00]} 4. d4 {[%emt 0:00:00]} cxd4 {[%emt 0:00:00]} 5. Nxd4 {[%emt 0:00:00]} Nf6 {[%emt 0:00:00]} 6. Nc3 {[%emt 0:00:00]} Bb4 {[%emt 0:00:00]} 7. Nxc6 {[%emt 0:00:00]} bxc6 {[%emt 0:00:00]} 8. Bd3 {[%emt 0:14:03]} d5 {[%emt 0:00:00]} 9. cxd5 {[%emt 0:10:15]} exd5 {[%emt 0:14:08]} 10. exd5 {[%emt 0:00:09]} Nxd5 {[%emt 0:00:36] B44: Sicilian: Taimanov: 5 Nb5.} 11. O-O {[%emt 0:00:34]} O-O {[%emt 0:09:05]} 12. Nxd5 {[%emt 0:00:30]} (12. Qh5 g6 13. Qf3 (13. Qe5 Nxc3 14. bxc3 Re8 $15) 13... Nxc3 14. bxc3 Bxc3 $15) 12... Qxd5 {[%emt 0:03:28] White has an edge.} 13. Qc2 {[%emt 0:00:44]} h6 {[%emt 0:10:43] [#]} 14. Bf4 $146 {[%emt 0:11:09]} ({Predecessor:} 14. Bh7+ Kh8 15. Be4 Qc5 16. Qxc5 Bxc5 17. Bxc6 Rb8 18. Rd1 Bg4 19. Bf3 Bxf3 20. gxf3 {1-0 (45) Jobava,B (2603)-Kotepalli,S (1914) Chess.com INT 2021}) 14... Qc5 {[%emt 0:07:44]} 15. Qxc5 {[%emt 0:05:01] White is more active.} (15. Qe2 $5 {[%cal Ra2a3]} Rd8 16. Qe4 $14) 15... Bxc5 {[%emt 0:00:07]} 16. Rac1 {[%emt 0:01:05]} Bd4 {[%emt 0:00:48]} 17. Rxc6 {[%emt 0:00:04]} (17. b3 $1 $14) 17... Be6 {[%emt 0:00:57] [#]} (17... Bxb2 $11 18. Rc2 Bd4) 18. b3 $1 $16 {[%emt 0:00:46]} Rfd8 {[%emt 0:01:58][%cal Od4f2]} 19. Bc4 {[%emt 0:05:30]} Bxc4 {[%emt 0:00:47]} 20. Rxc4 {[%emt 0:00:07]} Rac8 {[%emt 0:01:28]} 21. Rfc1 {[%emt 0:00:48]} Rxc4 {[%emt 0:00:51]} 22. Rxc4 {[%emt 0:00:06][%mdl 4096] Endgame KRB-KRB} (22. bxc4 g5 23. Be3 Bxe3 24. fxe3 Kf8 $14) 22... Bb6 {[%emt 0:03:41][%cal Rd8d1]} 23. g4 {[%emt 0:00:56]} Rd1+ {[%emt 0:03:28]} 24. Kg2 {[%emt 0:00:10]} Re1 {[%emt 0:00:06]} 25. Bc7 {[%emt 0:00:58]} Re2 {[%emt 0:01:33]} (25... Re6 $16 26. Bxb6 axb6 27. Rc8+ Kh7) 26. Bxb6 $18 {[%emt 0:01:28]} axb6 {[%emt 0:01:11] [#] KR-KR} 27. a4 $1 {[%emt 0:00:07]} Re6 {[%emt 0:00:46]} 28. b4 {[%emt 0:06:15]} Re1 {[%emt 0:02:05]} 29. Kf3 {[%emt 0:02:15]} ({But not} 29. a5 bxa5 30. bxa5 Ra1) 29... Kf8 {[%emt 0:00:27]} 30. Re4 {[%emt 0:00:52]} Ra1 {[%emt 0:00:14]} 31. b5 {[%emt 0:00:06]} f6 {[%emt 0:02:12]} 32. h4 {[%emt 0:01:27][%cal Bh2h4,Bh4h5][%mdl 32] And now Rc4 would win.} Kf7 {[%emt 0:02:19]} (32... Ra3+ $142 33. Ke2 g5) 33. h5 {[%emt 0:00:08]} Ra3+ {[%emt 0:02:04]} 34. Ke2 {[%emt 0:01:02]} f5 $2 {[%emt 0:00:12]} (34... g6 35. Rc4 gxh5) 35. Rf4 {[%emt 0:03:20]} (35. gxf5 $142 Kf6 36. Rg4) 35... Ke6 $2 {[%emt 0:00:15]} (35... g6 36. hxg6+ (36. gxf5 Ra2+ 37. Kf3 gxh5 $16) 36... Kxg6 37. gxf5+ (37. Rxf5 Ra2+ 38. Kf3 Ra3+ 39. Ke2 Ra2+ 40. Kd3 Ra3+ 41. Kd2 Ra2+ 42. Ke3 Ra3+ 43. Kf4 Rxa4+ 44. Kg3 Rd4 $16) 37... Kf6) 36. gxf5+ {[%emt 0:00:22]} Ke5 {[%emt 0:00:10]} 37. Rg4 {[%emt 0:00:08]} Kxf5 {[%emt 0:00:22]} 38. Rxg7 {[%emt 0:00:11]} Rxa4 {[%emt 0:00:18]} 39. Rg6 {[%emt 0:00:08]} Rb4 {[%emt 0:00:33]} 40. Rxh6 $2 {[%emt 0:05:38] Weighted Error Value: White=0.21 (precise) /Black=0.41} ({White must play} 40. Rxb6 $18 Rb2+ 41. Ke3) 1/2-1/2

[Event "GER-ch Youth-ODJM 2022 A"]
[Site "Willingen"]
[Date "2022.06.08"]
[Round "6.13"]
[White "Jenner, Meikel"]
[Black "Dornieden, Jonas"]
[Result "1/2-1/2"]
[ECO "B20"]
[WhiteElo "1981"]
[BlackElo "2069"]
[Annotator "TA"]
[PlyCount "67"]
[EventDate "2022.06.05"]
[EventType "swiss"]
[EventRounds "9"]
[EventCountry "GER"]
[SourceTitle "playchess.com"]
[Source "ChessBase"]
[SourceQuality "1"]
[TimeControl "40/4500+30:900+30"]

{[%evp 9,67,0,0,-44,-39,-53,-32,-47,-28,-73,-39,-39,-42,-46,-22,-46,-29,-47,-41,-45,-41,-60,-29,-20,10,-6,-10,-21,43,0,27,-22,29,0,0,-36,-29,-113,-112,-100,-113,-114,-104,-116,-5,-24,-14,-38,0,0,0,0,0,-36,-25,-20,-24,-51,-25,-33]} 1. e4 {[%emt 0:00:00]} c5 {[%emt 0:00:00]} 2. c4 {[%emt 0:00:00]} Nc6 {[%emt 0:00:00][%cal Bb8c6,Bc6e5,Be5d3][%mdl 32]} 3. Nc3 {[%emt 0:00:00]} e6 {[%emt 0:00:00]} 4. g3 {[%emt 0:00:00]} d6 {[%emt 0:00:00]} 5. Nge2 {[%emt 0:00:00]} Ne5 {[%emt 0:00:42][%cal Re5f3] [#]} 6. Bg2 {[%emt 0:00:00] [#] Prevents Nf3+. A34: Symmetrical English: 2 Nc3, lines with ...d5.} Nd3+ $146 {[%emt 0:01:41]} ({Predecessor:} 6... Nxc4 7. Qa4+ Bd7 8. Qxc4 Rb8 9. d4 cxd4 10. Qxd4 a6 11. O-O e5 12. Qd3 Nf6 13. h3 Qc8 14. Kh2 g5 15. Bxg5 Be7 16. Bxf6 Bxf6 {1-0 (16) Dos Anjos,D (1601)-Machado,A (1335) Itajai 2016}) 7. Kf1 {[%emt 0:00:00]} Nf6 {[%emt 0:02:20] Threatens to win with ...Ng4.} ({Much worse is} 7... Qf6 8. f3 $11) 8. h3 {[%emt 0:00:00] Inhibits Ng4. Black is slightly better.} Be7 {[%emt 0:06:11]} 9. a3 {[%emt 0:00:00]} Bd7 {[%emt 0:05:50]} 10. Qc2 {[%emt 0:00:00]} Nxc1 {[%emt 0:00:54]} 11. Rxc1 {[%emt 0:00:00]} Rb8 {[%emt 0:07:27]} 12. Kg1 {[%emt 0:00:00]} a6 {[%emt 0:01:37][%cal Ba7a6,Ba6b5][%mdl 32]} 13. Kh2 {[%emt 0:00:00]} b5 {[%emt 0:04:37]} 14. cxb5 {[%emt 0:00:00]} axb5 {[%emt 0:00:23]} 15. b4 {[%emt 0:00:00]} cxb4 {[%emt 0:11:32]} 16. axb4 {[%emt 0:00:00]} d5 {[%emt 0:02:10]} 17. e5 {[%emt 0:00:00]} Ng8 {[%emt 0:00:31]} 18. Qb2 {[%emt 0:00:20]} h5 {[%emt 0:01:43]} (18... Nh6 $11) 19. d4 {[%emt 0:03:42]} Nh6 {[%emt 0:03:59]} 20. Nd1 {[%emt 0:01:43]} (20. Nf4) (20. Nf4 $142) 20... Nf5 {[%emt 0:02:09]} (20... Ra8 $142) 21. Rc3 {[%emt 0:05:49]} Rc8 {[%emt 0:04:48]} 22. Ne3 {[%emt 0:04:09]} Nxe3 {[%emt 0:00:48]} 23. Rxe3 {[%emt 0:00:47]} (23. fxe3 $11 Rc4 24. Rxc4 bxc4 25. Ra1) 23... Rc4 $17 {[%emt 0:00:45]} 24. Rb3 {[%emt 0:00:09]} Qc7 {[%emt 0:02:03]} 25. Rc1 {[%emt 0:01:14] Inhibits Rc2.} O-O {[%emt 0:00:40]} 26. Bf1 {[%emt 0:01:34]} Qb6 {[%emt 0:08:47]} (26... h4 $17 {aiming for ...f6.} 27. Rcc3 hxg3+ 28. fxg3 Rc8) 27. Rd1 $11 {[%emt 0:05:45]} Rfc8 {[%emt 0:00:34]} 28. Rd2 {[%emt 0:01:11] Inhibits Rc2.} Qc7 {[%emt 0:01:06]} (28... Bg5 {is interesting.} 29. Nf4 Rc1 30. Bd3 h4) 29. Nf4 {[%emt 0:01:16][%csl LRc4,LRh5]} Rc2 {[%emt 0:01:46]} 30. Rxc2 {[%emt 0:01:34]} Qxc2 {[%emt 0:00:05]} 31. Bd3 {[%emt 0:05:42]} Qxb2 {[%emt 0:00:55]} 32. Rxb2 {[%emt 0:00:06]} h4 {[%emt 0:06:13]} 33. Ne2 {[%emt 0:01:10]} Be8 {[%emt 0:01:45]} 34. Rb3 {[%emt 0:01:38] Weighted Error Value: White=0.21 (precise) /Black=0.23 (precise)} 1/2-1/2